lending/lending_fUSD_20251016
["ID","MTS","AMOUNT","RATE_DAILY","PERIOD"]
[391544388,1760644248633,-250.0,0.00020432,2]
[391544389,1760644248642,-250.0,0.00020432,2]
[391544390,1760644248651,-250.0,0.00020432,2]
[391544391,1760644248660,-1000.0,0.00020432,2]
[391544392,1760644248670,-250.0,0.00020432,2]
[391544393,1760644248679,-1000.0,0.00020432,2]
[391544394,1760644248688,-1000.0,0.00020432,2]
[391544395,1760644248699,-1000.0,0.00020432,2]
[391544396,1760644248708,-250.0,0.00020432,2]
[391544397,1760644248717,-151.0,0.00020432,2]
[391544398,1760644248729,-1000.0,0.00020432,2]
[391544399,1760644248738,-1000.0,0.00020432,2]
[391544400,1760644248747,-1000.0,0.00020432,2]
[391544401,1760644248757,-250.0,0.00020432,2]
[391544402,1760644248766,-151.0,0.00020432,2]
[391544403,1760644248776,-1000.0,0.00020432,2]
[391544404,1760644248788,-9552.16786547,0.00020432,2]
[391544405,1760644248798,-1000.0,0.00020432,2]
[391544406,1760644248807,-250.0,0.00020432,2]
[391544407,1760644248817,-151.0,0.00020432,2]
[391544408,1760644248827,-1000.0,0.00020432,2]
[391544409,1760644248836,-1000.0,0.00020432,2]
[391544410,1760644248845,-926.57788856,0.00020432,2]
[391544411,1760644248855,-151.0,0.00020432,2]
[391544412,1760644248864,-1000.0,0.00020432,2]
[391544413,1760644248874,-250.0,0.00020432,2]
[391544414,1760644248883,-1000.0,0.00020432,2]
[391544415,1760644248892,-296.0,0.00020432,2]
[391544416,1760644248901,-250.0,0.00020432,2]
[391544417,1760644248911,-1000.0,0.00020432,2]
[391544418,1760644248921,-1000.0,0.00020432,2]
[391544419,1760644248931,-250.0,0.00020432,2]
[391544420,1760644248940,-1000.0,0.00020432,2]
[391544421,1760644248950,-250.0,0.00020432,2]
[391544422,1760644248959,-1000.0,0.00020432,2]
[391544423,1760644248968,-250.0,0.00020432,2]
[391544424,1760644248984,-250.0,0.00020432,2]
[391544425,1760644248994,-250.0,0.00020432,2]
[391544426,1760644249003,-1000.0,0.00020432,2]
[391544427,1760644249013,-250.0,0.00020432,2]
[391544428,1760644249023,-871.48857578,0.00020432,2]
[391544429,1760644249034,-250.0,0.00020432,2]
[391544430,1760644249046,-250.0,0.00020432,2]
[391544431,1760644249056,-250.0,0.00020432,2]
[391544432,1760644249065,-250.0,0.00020432,2]
[391544433,1760644249075,-250.0,0.00020432,2]
[391544434,1760644249085,-250.0,0.00020432,2]
[391544435,1760644249095,-250.0,0.00020432,2]
[391544436,1760644249104,-250.0,0.00020432,2]
[391544437,1760644249116,-250.0,0.00020432,2]
[391544438,1760644249126,-250.0,0.00020432,2]
[391544439,1760644249136,-250.0,0.00020432,2]
[391544440,1760644249146,-250.0,0.00020432,2]
[391544441,1760644249158,-250.0,0.00020432,2]
[391544442,1760644249168,-250.0,0.00020432,2]
[391544443,1760644249178,-277.35679052,0.00020432,2]
[391544444,1760644249190,-250.0,0.00020432,2]
[391544445,1760644249200,-250.0,0.00020432,2]
[391544446,1760644249210,-250.0,0.00020432,2]
[391544447,1760644249220,-250.0,0.00020432,2]
[391544448,1760644249235,-250.0,0.00020432,2]
[391544449,1760644249245,-250.0,0.00020432,2]
[391544450,1760644249254,-176.474061,0.00020432,7]
[391544451,1760644249265,-241.55248,0.00020432,7]
[391544452,1760644249275,-151.0,0.00020432,7]
[391544453,1760644249292,-151.0,0.00020432,7]
[391544454,1760644249307,-151.0,0.00020432,7]
[391544455,1760644249318,-151.0,0.00020432,7]
[391544456,1760644249328,-151.0,0.00020432,7]
[391544457,1760644249338,-151.0,0.00020432,7]
[391544458,1760644249347,-293.248834,0.00020432,7]
[391544459,1760644249357,-208.426671,0.00020432,7]
[391544460,1760644249367,-208.426671,0.00020432,7]
[391544461,1760644249377,-208.426671,0.00020432,7]
[391544462,1760644249389,-208.426667,0.00020432,7]
[391544463,1760644249400,-151.0,0.00020432,7]
[391544464,1760644249412,-1358.242654,0.00020432,7]
[391544465,1760644249425,-151.0,0.00020432,7]
[391544466,1760644249435,-1358.242654,0.00020432,7]
[391544467,1760644249445,-151.0,0.00020432,7]
[391544468,1760644249455,-1358.242654,0.00020432,7]
[391544469,1760644249465,-151.0,0.00020432,7]
[391544470,1760644249479,-316.655344,0.00020432,7]
[391544471,1760644249488,-1358.242648,0.00020432,7]
[391544472,1760644249498,-151.0,0.00020432,7]
[391544473,1760644249508,-316.655344,0.00020432,7]
[391544474,1760644249518,-151.0,0.00020432,7]
[391544475,1760644249528,-316.655344,0.00020432,7]
[391544476,1760644249539,-172.074016,0.00020432,7]
[391544477,1760644249549,-316.655349,0.00020432,7]
[391544478,1760644249559,-363.40011,0.00020432,7]
[391544479,1760644249569,-363.40011,0.00020432,7]
[391544480,1760644249580,-363.40011,0.00020432,7]
[391544481,1760644249589,-294.655102,0.00020432,7]
[391544482,1760644249598,-363.400112,0.00020432,7]
[391544483,1760644249608,-294.655102,0.00020432,7]
[391544484,1760644249617,-294.655102,0.00020432,7]
[391544485,1760644249627,-294.655099,0.00020432,7]
[391544486,1760644249637,-151.0,0.00020432,7]
[391544487,1760644249646,-151.0,0.00020432,7]
[391544488,1760644249656,-259.6986692,0.00020432,7]
[391544489,1760644249665,-9905.5980765,0.00020487,2]
[391544490,1760644249674,-10272.10520533,0.00020542,2]
[391544491,1760644249684,-1727.10333896,0.00020597,2]
[391544492,1760644249694,-370.68887098,0.0002087,2]
[391544493,1760644249703,-164.374606,0.00020895,7]
[391544494,1760644249713,-151.0,0.00020895,7]
[391544495,1760644249724,-151.0,0.00020895,7]
[391544496,1760644249734,-187.957264,0.00020895,7]
[391544497,1760644249743,-187.957264,0.00020895,7]
[391544498,1760644249753,-187.957264,0.00020895,7]
[391544499,1760644249762,-187.957264,0.00020895,7]
[391544500,1760644249772,-151.55,0.00020895,2]
[391544501,1760644249782,-152.15,0.00020895,2]
[391544502,1760644249792,-303.86,0.00020895,2]
[391544503,1760644249801,-152.43,0.00020895,2]
[391544504,1760644249810,-152.6,0.00020895,2]
[391544505,1760644249829,-301.11,0.00020895,2]
[391544506,1760644249839,-152.7,0.00020895,2]
[391544507,1760644249849,-152.95,0.00020895,2]
[391544508,1760644249859,-303.95,0.00020895,2]
[391544509,1760644249868,-300.0,0.00020895,2]
[391544510,1760644249878,-151.81,0.00020895,2]
[391544511,1760644249888,-151.87,0.00020895,2]
[391544512,1760644249898,-152.17,0.00020895,2]
[391544513,1760644249908,-8078.34861934,0.00020903,2]
[391544514,1760644249917,-498.92282552,0.00020941,2]
[391544515,1760644249928,-560.72803892,0.00020941,2]
[391544516,1760644249938,-155.0,0.00020999,2]
[391544517,1760644249948,-1034.14055,0.00021,2]
[391544518,1760644249958,-10424.9901616,0.00021015,2]
[391544519,1760644249967,-415.38630618,0.00021101,2]
[391544520,1760644249979,-151.0,0.00021122,7]
[391544521,1760644249990,-3166.54,0.00021351,2]
[391544522,1760644250000,-906.218,0.00021351,2]
[391544523,1760644250010,-1182.0,0.00021351,2]
[391544524,1760644250020,-675.45,0.0002142,30]
[391544525,1760644250030,-1394.0,0.00021652,2]
[391544526,1760644250043,-500.0,0.00021652,2]
[391544527,1760644250053,-1053.47741809,0.00021657,2]
[391544528,1760644250063,-197.58241952,0.00021662,2]
[391544529,1760644250072,-228.35662367,0.00021913,2]
[391544530,1760644250083,-155.102801,0.00021918,7]
[391544531,1760644250093,-600.0,0.00021918,2]
[391544532,1760644250103,-1096.92691343,0.0002199,2]
[391544533,1760644250115,-34224.43651189,0.00022,4]
[391544534,1760644250124,-214.36247,0.00022,7]
[391544535,1760644250134,-185.285114,0.00022,7]
[391544536,1760644250144,-185.285114,0.00022,7]
[391544537,1760644250153,-185.285114,0.00022,7]
[391544538,1760644250163,-185.28512161,0.00022,7]
[391544539,1760644250173,-225.205601,0.00022,7]
[391544540,1760644250183,-386.08581003,0.00022,2]
[391544541,1760644250192,-151.0,0.00022,7]
[391544542,1760644250201,-151.0,0.00022,7]
[391544543,1760644250211,-151.0,0.00022,7]
[391544544,1760644250221,-151.0,0.00022,7]
[391544545,1760644250235,-241.77134,0.00022,7]
[391544546,1760644250244,-151.0,0.00022,7]
[391544547,1760644250254,-151.0,0.00022,7]
[391544548,1760644250263,-151.0,0.00022,7]
[391544549,1760644250274,-151.0,0.00022,7]
[391544550,1760644250284,-151.0,0.00022,7]
[391544551,1760644250294,-151.0,0.00022,7]
[391544552,1760644250304,-151.0,0.00022,7]
[391544553,1760644250314,-151.0,0.00022,7]
[391544554,1760644250323,-151.0,0.00022,7]
[391544555,1760644250332,-205.983292,0.00022,7]
[391544556,1760644250343,-151.0,0.00022,7]
[391544557,1760644250353,-151.0,0.00022,7]
[391544558,1760644250364,-151.0,0.00022,7]
[391544559,1760644250373,-493.57,0.00022,2]
[391544560,1760644250383,-918.88,0.00022088,2]
[391544561,1760644250394,-468.96374948,0.00022134,2]
[391544562,1760644250403,-8078.34861934,0.00022404,2]
[391544563,1760644250413,-433.33242584,0.00022542,2]
[391544564,1760644250423,-10424.9901616,0.00022544,2]
[391544565,1760644250432,-317.52156195,0.00022578,2]
[391544566,1760644250442,-2795.0208574,0.00022642,7]
[391544567,1760644250451,-151.0,0.00022642,7]
[391544568,1760644250461,-151.0,0.00022642,7]
[391544569,1760644250471,-187.957264,0.00022642,7]
[391544570,1760644250484,-187.957264,0.00022642,7]
[391544571,1760644250494,-187.957264,0.00022642,7]
[391544572,1760644250504,-187.957273,0.00022642,7]
[391544573,1760644250514,-267.51252272,0.00022731,2]
[391544574,1760644250524,-1000.0,0.00022805,2]
[391544575,1760644250533,-546.62,0.00022869,2]
[391544576,1760644250547,-250.0,0.00022896,7]
[391544577,1760644250557,-1034.14055,0.00023,2]
[391544578,1760644250568,-301.0,0.00023,2]
[391544579,1760644250578,-493.57,0.00023098,2]
[391544580,1760644250588,-522.72044719,0.00023167,2]
[391544581,1760644250598,-150.0,0.0002321,2]
[391544582,1760644250608,-7300.55,0.00023316,2]
[391544583,1760644250617,-229.0,0.0002335,2]
[391544584,1760644250627,-229.0,0.00023406,2]
[391544585,1760644250636,-151.28,0.0002346,2]
[391544586,1760644250647,-152.88,0.0002346,2]
[391544587,1760644250657,-302.47,0.0002346,2]
[391544588,1760644250667,-229.0,0.0002352,2]
[391544589,1760644250677,-250.0,0.00023617,2]
[391544590,1760644250686,-228.35662367,0.00023667,2]
[391544591,1760644250696,-229.0,0.0002367,2]
[391544592,1760644250707,-229.0,0.00023699,2]
[391544593,1760644250717,-229.0,0.00023788,2]
[391544594,1760644250729,-1061.89832718,0.00023822,2]
[391544595,1760644250739,-433.33242582,0.00023898,2]
[391544596,1760644250750,-8078.34861934,0.00023905,2]
[391544597,1760644250761,-197.58241952,0.00023917,2]
[391544598,1760644250771,-375.11398408,0.00024,2]
[391544599,1760644250780,-229.0,0.00024002,2]
[391544600,1760644250790,-10424.9901616,0.00024073,2]
[391544601,1760644250801,-229.0,0.0002413,2]
[391544602,1760644250810,-229.0,0.00024166,2]
[391544603,1760644250821,-493.57,0.00024195,2]
[391544604,1760644250831,-666.0,0.00024199,2]
[391544605,1760644250840,-572.10680401,0.00024199,2]
[391544606,1760644250851,-238.36153408,0.00024199,2]
[391544607,1760644250860,-500.0,0.00024199,2]
[391544608,1760644250871,-500.0,0.00024199,2]
[391544609,1760644250880,-150.0,0.00024199,2]
[391544610,1760644250890,-446465.39750154,0.000242,3]
[391544611,1760644250900,-207.91501317,0.000242,2]
[391544612,1760644250909,-201031.18923624,0.000242,2]
[391544613,1760644250919,-576.63892375,0.00024201,2]
[391544614,1760644250929,-229.0,0.0002422,2]
[391544615,1760644250939,-229.0,0.00024268,2]
[391544616,1760644250948,-389.08295385,0.00024339,2]
[391544617,1760644250958,-500.0,0.00024362,2]
[391544618,1760644250967,-500.0,0.00024363,2]
[391544619,1760644250978,-500.0,0.00024363,2]
[391544620,1760644250987,-200.0,0.00024363,2]
[391544621,1760644250996,-229.0,0.000244,2]
[391544622,1760644251006,-229.0,0.0002452,2]
[391544623,1760644251015,-1000.0,0.00024557,7]
[391544624,1760644251025,-151.0,0.00024559,2]
[391544625,1760644251040,-151.64545188,0.00024559,2]
[391544626,1760644251049,-1000.0,0.00024559,2]
[391544627,1760644251059,-1000.0,0.00024559,2]
[391544628,1760644251068,-1000.0,0.00024559,2]
[391544629,1760644251079,-1000.0,0.00024559,2]
[391544630,1760644251088,-1000.0,0.00024559,2]
[391544631,1760644251097,-1000.0,0.00024559,2]
[391544632,1760644251108,-1000.0,0.00024559,2]
[391544633,1760644251121,-628.61100759,0.00024559,2]
[391544634,1760644251130,-872.42226988,0.0002459,2]
[391544635,1760644251141,-317.52156192,0.00024603,2]
[391544636,1760644251152,-323.68000742,0.00024658,7]
[391544637,1760644251163,-1000.0,0.00024658,7]
[391544638,1760644251173,-1000.0,0.00024658,7]
[391544639,1760644251183,-1000.0,0.00024658,7]
[391544640,1760644251192,-1000.0,0.00024658,7]
[391544641,1760644251202,-1000.0,0.00024658,7]
[391544642,1760644251211,-154.0,0.00024658,2]
[391544643,1760644251221,-338.23,0.00024658,2]
[391544644,1760644251231,-1000.0,0.00024658,2]
[391544645,1760644251242,-151.0,0.00024658,7]
[391544646,1760644251252,-151.0,0.00024658,7]
[391544647,1760644251262,-151.0,0.00024658,7]
[391544648,1760644251272,-151.0,0.00024658,7]
[391544649,1760644251282,-151.0,0.00024658,7]
[391544650,1760644251293,-151.0,0.00024658,7]
[391544651,1760644251303,-151.0,0.00024658,7]
[391544652,1760644251313,-151.0,0.00024658,7]
[391544653,1760644251323,-206.463717,0.00024658,7]
[391544654,1760644251332,-154.0,0.00024658,2]
[391544655,1760644251342,-154.0,0.00024658,2]
[391544656,1760644251352,-154.0,0.00024658,2]
[391544657,1760644251362,-160.59988259,0.00024658,2]
[391544658,1760644251372,-500.0,0.00024658,2]
[391544659,1760644251384,-259.262673,0.000247,2]
[391544660,1760644251393,-500.0,0.00024713,2]
[391544661,1760644251405,-229.0,0.0002474,2]
[391544662,1760644251414,-2596.10360325,0.00024747,32]
[391544663,1760644251425,-500.0,0.00024768,2]
[391544664,1760644251437,-500.0,0.00024799,2]
[391544665,1760644251448,-500.0,0.00024799,2]
[391544666,1760644251459,-500.0,0.00024799,2]
[391544667,1760644251470,-500.0,0.00024799,2]
[391544668,1760644251481,-500.0,0.00024799,2]
[391544669,1760644251490,-2007.60911427,0.000248,5]
[391544670,1760644251500,-609070.964453,0.000248,3]
[391544671,1760644251510,-500.0,0.00024822,2]
[391544672,1760644251519,-1168.77293588,0.0002487,2]
[391544673,1760644251530,-7076.32786677,0.00024877,2]
[391544674,1760644251539,-500.0,0.00024877,2]
[391544675,1760644251549,-500.0,0.0002488,2]
[391544676,1760644251559,-237.53,0.0002488,2]
[391544677,1760644251569,-500.0,0.0002488,2]
[391544678,1760644251580,-7161.2659601,0.0002488,2]
[391544679,1760644251591,-500.0,0.00024889,2]
[391544680,1760644251601,-500.0,0.00024889,2]
[391544681,1760644251613,-500.0,0.00024889,2]
[391544682,1760644251623,-500.0,0.00024889,2]
[391544683,1760644251634,-500.0,0.00024889,2]
[391544684,1760644251646,-500.0,0.00024889,2]
[391544685,1760644251656,-450.73884289,0.00024889,2]
[391544686,1760644251667,-341948.42037761,0.0002489,7]
[391544687,1760644251678,-500.0,0.00024899,2]
[391544688,1760644251689,-500.0,0.00024899,2]
[391544689,1760644251700,-144280.979688,0.000249,3]
[391544690,1760644251709,-500.0,0.00024932,2]
[391544691,1760644251721,-229.0,0.00024943,2]
[391544692,1760644251734,-150.0,0.00024973,2]
[391544693,1760644251744,-229.0,0.00024986,2]
[391544694,1760644251754,-500.0,0.00024987,2]
[391544695,1760644251764,-500.0,0.00024989,2]
[391544696,1760644251774,-317.8,0.00024989,2]
[391544697,1760644251784,-500.0,0.00024999,2]
[391544698,1760644251794,-500.0,0.00024999,2]
[391544699,1760644251804,-500.0,0.00024999,2]
[391544700,1760644251814,-2938.13,0.00024999,2]
[391544701,1760644251823,-524.45,0.00024999,2]
[391544702,1760644251832,-735.18,0.00024999,2]
[391544703,1760644251842,-735.18,0.00024999,2]
[391544704,1760644251851,-735.18,0.00024999,2]
[391544705,1760644251860,-735.18,0.00024999,2]
[391544706,1760644251870,-735.32140768,0.00024999,2]
[391544707,1760644251879,-500.0,0.00024999,2]
[391544708,1760644251889,-7424.5007216,0.00025,2]
[391544709,1760644251898,-9759.0,0.00025,2]
[391544710,1760644251908,-1000.09171088,0.00025,7]
[391544711,1760644251918,-449.17,0.00025,7]
[391544712,1760644251927,-1432.88,0.00025,7]
[391544713,1760644251936,-2000.0,0.00025,2]
[391544714,1760644251946,-2000.0,0.00025,2]
[391544715,1760644251955,-2000.0,0.00025,2]
[391544716,1760644251965,-2000.0,0.00025,2]
[391544717,1760644251975,-2000.0,0.00025,2]
[391544718,1760644251987,-2002.49,0.00025,2]
[391544719,1760644251997,-3731.29,0.00025,7]
[391544720,1760644252006,-746.43,0.00025,7]
[391544721,1760644252016,-1119.39,0.00025,7]
[391544722,1760644252025,-4724.89097962,0.00025,3]
[391544723,1760644252038,-14115.58,0.00025,7]
[391544724,1760644252048,-3172.82,0.00025,7]
[391544725,1760644252058,-30000.0,0.00025,2]
[391544726,1760644252067,-30000.0,0.00025,2]
[391544727,1760644252078,-29421.58179493,0.00025,2]
[391544728,1760644253059,-2554.30059313,0.00025,2]
[391544729,1760644253070,-15123.688813,0.00025,90]
[391544730,1760644253081,-373.13,0.00025,7]
[391544731,1760644253091,-373.13,0.00025,7]
[391544732,1760644253101,-160.31654744,0.00025,2]
[391544733,1760644253113,-262.38,0.00025,7]
[391544734,1760644253125,-50694.72211298,0.00025,2]
[391544735,1760644253135,-252.776,0.00025,2]
[391544736,1760644253144,-1007.93,0.00025,2]
[391544737,1760644253154,-1034.14055,0.00025,2]
[391544738,1760644253163,-500.0,0.00025042,2]
[391544739,1760644253174,-500.0,0.00025096,2]
[391544740,1760644253183,-229.0,0.00025118,2]
[391544741,1760644253193,-500.0,0.00025151,2]
[391544742,1760644253204,-1140.45,0.00025199,2]
[391544743,1760644253214,-1140.45,0.00025199,2]
[391544744,1760644253228,-500.0,0.00025206,2]
[391544745,1760644253243,-229.0,0.00025222,2]
[391544746,1760644253254,-630.70485212,0.00025234,3]
[391544747,1760644253264,-433.33242582,0.00025254,2]
[391544748,1760644253275,-500.0,0.00025261,2]
[391544749,1760644253285,-493.57,0.00025292,7]
[391544750,1760644253296,-2000.0,0.000253,2]
[391544751,1760644253307,-500.0,0.00025316,2]
[391544752,1760644253317,-500.0,0.00025364,2]
[391544753,1760644253327,-500.0,0.00025364,2]
[391544754,1760644253338,-501.81,0.00025364,2]
[391544755,1760644253348,-2938.13,0.00025364,2]
[391544756,1760644253358,-708.12,0.00025364,2]
[391544757,1760644253369,-500.0,0.00025364,2]
[391544758,1760644253379,-500.0,0.00025364,2]
[391544759,1760644253390,-500.0,0.00025364,2]
[391544760,1760644253400,-500.0,0.00025364,2]
[391544761,1760644253411,-215940.08682162,0.00025365,15]
[391544762,1760644253424,-500.0,0.0002537,2]
[391544763,1760644253434,-229.0,0.00025382,2]
[391544764,1760644253444,-8078.34861934,0.00025405,2]
[391544765,1760644253454,-229.0,0.00025415,2]
[391544766,1760644253464,-228.35662367,0.0002542,2]
[391544767,1760644253474,-438.42319111,0.00025425,2]
[391544768,1760644253487,-229.0,0.00025478,2]
[391544769,1760644253498,-1007.93,0.000255,2]
[391544770,1760644253508,-229.0,0.00025503,2]
[391544771,1760644253518,-150.0,0.00025506,2]
[391544772,1760644253528,-150.0,0.00025506,2]
[391544773,1760644253538,-150.0,0.00025506,2]
[391544774,1760644253550,-150.0,0.00025506,2]
[391544775,1760644253560,-150.0,0.00025506,2]
[391544776,1760644253570,-250.0,0.00025521,2]
[391544777,1760644253580,-229.0,0.00025522,2]
[391544778,1760644253589,-229.0,0.00025528,2]
[391544779,1760644253599,-500.0,0.00025599,2]
[391544780,1760644253610,-151.0,0.000256,2]
[391544781,1760644253619,-5588.26461141,0.00025601,2]
[391544782,1760644254025,-515.654722,0.00015,2]
[391544783,1760644254036,-8.25871035,0.00015,2]
[391544784,1760644254053,-507.39601165,0.00015,2]
[391544785,1760644254064,-151.0,0.000162,2]
[391544786,1760644254074,-68.36869909,0.000162,2]
[391544787,1760644254087,-447.28602291,0.000162,2]
[391544788,1760644254098,-151.0,0.00017902,2]
[391544789,1760644254108,-515.654722,0.00017902,2]
[391544790,1760644254122,-515.654722,0.00019402,7]
[391544791,1760644254133,-515.654722,0.00020432,7]
[391544792,1760644254142,-377.72431324,0.00021351,2]
[391544793,1760644254158,-515.654722,0.000162,2]
[391544794,1760644254168,-2168.27568676,0.00021351,2]
[391544795,1760644254178,-152.0,0.0002425,3]
[391544796,1760644254188,-340.94059124,0.00024351,2]
[391544797,1760644254199,-350.0,0.00024351,2]
[391544798,1760644254216,-1812.69259738,0.00024351,2]
[391544799,1760644254234,-42.36681138,0.00024351,2]
[391544800,1760644254244,-4518.70309997,0.00025601,2]
[391544801,1760644254256,-314.92224835,0.00025601,2]
[391544802,1760644254268,-3.10020187,0.00025601,2]
[391544803,1760644254278,-229.0,0.00025604,2]
[391544804,1760644254288,-347.97478935,0.00025656,2]
[391544805,1760644254301,-652.02521065,0.00025656,2]
[391544806,1760644254311,-160.86,0.00025797,2]
[391544807,1760644254321,-2397.99,0.00025834,2]
[391544808,1760644254330,-500.0,0.00025861,7]
[391544809,1760644254813,-423.59334667,0.00025861,7]
[391544810,1760644254826,-76.40665333,0.00025861,7]
[391544811,1760644254835,-500.0,0.00025861,7]
[391544812,1760644254845,-500.0,0.00025861,7]
[391544813,1760644254855,-500.0,0.00025861,7]
[391544814,1760644254865,-500.0,0.00025861,7]
[391544815,1760644254874,-3.9497999,0.00025861,7]
[391544816,1760644254885,-525.97422901,0.00025861,7]
[391544817,1760644254895,-567.3855664,0.00025861,7]
[391544818,1760644254905,-500.0,0.00025861,7]
[391544819,1760644254914,-618.2881408,0.00025861,7]
[391544820,1760644254923,-500.0,0.00025861,7]
[391544821,1760644254933,-500.0,0.00025861,7]
[391544822,1760644254943,-926.41433943,0.00025861,7]
[391544823,1760644254953,-238.16782972,0.00025861,7]
[391544824,1760644254963,-500.0,0.00025861,7]
[391544825,1760644254972,-500.0,0.00025861,7]
[391544826,1760644254984,-5.45796457,0.00025861,7]
[391544863,1760645431926,-150.0,0.00016499,2]
[391544865,1760645431939,-2000.0,0.00016499,2]
[391544867,1760645431951,-414.0,0.0001732,2]
[391544869,1760645431962,-2000.0,0.00017321,2]
[391544872,1760645431973,-2000.0,0.00017321,2]
[391544874,1760645431985,-2000.0,0.00017321,2]
[391544876,1760645431996,-2000.0,0.00018149,2]
[391544878,1760645432008,-8881.57210157,0.00018817,2]
[391544881,1760645432020,-500.0,0.00019178,2]
[391544883,1760645432032,-183.38837732,0.00019921,2]
[391544885,1760645432042,-1000.0,0.000205,2]
[391544887,1760645432053,-246.63727106,0.00020806,2]
[391544889,1760645432064,-448.93019671,0.0002145,2]
[391544890,1760645432076,-310.3673441,0.00021692,2]
[391544891,1760645432088,-250.0,0.00021851,7]
[391544892,1760645432099,-1000.0,0.00021873,2]
[391544893,1760645432112,-1852.42,0.00021932,2]
[391544894,1760645432123,-250.0,0.00021956,2]
[391544895,1760645432134,-150.0,0.00022019,2]
[391544896,1760645432146,-200.0,0.0002206,2]
[391544897,1760645432174,-261.28,0.00022157,2]
[391544898,1760645432186,-151.0,0.00022157,2]
[391544899,1760645432197,-151.0,0.00022157,2]
[391544901,1760645432209,-151.0,0.00022157,2]
[391544902,1760645432220,-151.0,0.00022157,2]
[391544903,1760645432230,-151.0,0.00022157,2]
[391544904,1760645432240,-151.0,0.00022157,2]
[391544905,1760645432250,-151.0,0.00022157,2]
[391544907,1760645432260,-151.0,0.00022157,2]
[391544908,1760645432269,-151.0,0.00022157,2]
[391544909,1760645432281,-286.67484694,0.00022157,2]
[391544910,1760645432291,-151.0,0.00022157,2]
[391544911,1760645432301,-151.0,0.00022157,2]
[391544912,1760645432311,-151.0,0.00022157,2]
[391544913,1760645432320,-151.0,0.00022157,2]
[391544914,1760645432330,-151.0,0.00022157,2]
[391544915,1760645432340,-151.0,0.00022157,2]
[391544916,1760645432350,-151.0,0.00022157,2]
[391544917,1760645432360,-600.0,0.00022157,2]
[391544918,1760645432372,-151.0,0.00022157,2]
[391544919,1760645432381,-151.0,0.00022157,2]
[391544920,1760645432392,-151.0,0.00022157,2]
[391544922,1760645432401,-151.0,0.00022157,2]
[391544924,1760645432411,-284.34786155,0.00022171,2]
[391544925,1760645432422,-1000.0,0.00022171,2]
[391544926,1760645432431,-693.3919763,0.00022171,2]
[391544927,1760645432442,-250.0,0.00022171,2]
[391544928,1760645432452,-1000.0,0.00022171,2]
[391544929,1760645432461,-250.0,0.00022171,2]
[391544930,1760645432471,-1000.0,0.00022171,2]
[391544931,1760645432482,-322.6107,0.00022171,2]
[391544932,1760645432491,-250.0,0.00022171,2]
[391544933,1760645432501,-173.54506588,0.00022171,2]
[391544934,1760645432511,-250.0,0.00022171,2]
[391544935,1760645432523,-250.0,0.00022171,2]
[391544936,1760645432532,-250.0,0.00022171,2]
[391544937,1760645432543,-1000.0,0.00022171,2]
[391544938,1760645432553,-9552.16786547,0.00022171,2]
[391544939,1760645432563,-250.0,0.00022171,2]
[391544940,1760645432573,-1000.0,0.00022171,2]
[391544941,1760645432582,-250.0,0.00022171,2]